fUSD/lending_fUSD_20241001
["ID","MTS","AMOUNT","RATE_DAILY","PERIOD"]
[339665419,1727820729407,-649.26979452,0.00038904,120]
[339665420,1727820729416,-500.0,0.00038904,120]
[339665421,1727820729426,-500.0,0.00038904,120]
[339665422,1727820729436,-500.0,0.00038904,120]
[339665423,1727820729445,-500.0,0.00038904,120]
[339665424,1727820729454,-248.78406023,0.00038904,120]
[339665425,1727820729464,-500.0,0.00038904,120]
[339665426,1727820729474,-500.0,0.00038904,120]
[339665427,1727820729483,-500.0,0.00038904,120]
[339665428,1727820729493,-500.0,0.00038904,120]
[339665429,1727820729503,-500.0,0.00038904,120]
[339665430,1727820729516,-533.90145627,0.00038904,120]
[339665431,1727820729525,-500.0,0.00038904,120]
[339665432,1727820729535,-536.85252349,0.00038904,120]
[339665433,1727820729545,-500.0,0.00038904,120]
[339665434,1727820729555,-503.68935091,0.00038904,120]
[339665435,1727820729564,-500.0,0.00038904,120]
[339665436,1727820729574,-500.0,0.00038904,120]
[339665437,1727820729584,-500.0,0.00038904,120]
[339665438,1727820729593,-500.0,0.00038904,120]
[339665439,1727820729603,-500.0,0.00038904,120]
[339665440,1727820729613,-500.0,0.00038904,120]
[339665441,1727820729622,-500.0,0.00038904,120]
[339665442,1727820729631,-500.0,0.00038904,120]
[339665443,1727820729644,-500.0,0.00038904,120]
[339665444,1727820729654,-500.0,0.00038904,120]
[339665445,1727820729664,-500.0,0.00038904,120]
[339665446,1727820729673,-500.0,0.00038904,120]
[339665447,1727820729686,-500.0,0.00038904,120]
[339665448,1727820729695,-500.0,0.00038904,120]
[339665449,1727820729705,-500.0,0.00038904,120]
[339665450,1727820729717,-500.0,0.00038904,120]
[339665451,1727820729727,-500.0,0.00038904,120]
[339665452,1727820729738,-500.0,0.00038904,120]
[339665453,1727820729747,-500.0,0.00038904,120]
[339665454,1727820729758,-500.0,0.00038904,120]
[339665455,1727820729768,-500.0,0.00038904,120]
[339665456,1727820729777,-500.0,0.00038904,120]
[339665457,1727820729789,-500.0,0.00038904,120]
[339665458,1727820729798,-500.0,0.00038904,120]
[339665459,1727820729808,-161.12729482,0.00038904,120]
[339665460,1727820729818,-500.0,0.00038904,120]
[339665461,1727820729827,-500.0,0.00038904,120]
[339665462,1727820729837,-625.81,0.00038904,120]
[339665463,1727820729847,-500.0,0.00038904,120]
[339665464,1727820729857,-1230.79,0.00038904,120]
[339665465,1727820729866,-500.0,0.00038904,120]
[339665466,1727820729876,-1018.83,0.00038904,120]
[339665467,1727820729886,-500.0,0.00038904,120]
[339665468,1727820729895,-500.0,0.00038904,120]
[339665469,1727820729904,-2618.09,0.00038904,120]
[339665470,1727820729914,-500.0,0.00038904,120]
[339665471,1727820729923,-500.0,0.00038904,120]
[339665472,1727820729932,-869.23,0.00038904,120]
[339665473,1727820729942,-1127.66,0.00038904,120]
[339665474,1727820729951,-500.0,0.00038904,120]
[339665475,1727820729960,-500.0,0.00038904,120]
[339665476,1727820729970,-500.0,0.00038904,120]
[339665477,1727820729981,-500.0,0.00038904,120]
[339665478,1727820729991,-1370.44,0.00038904,120]
[339665479,1727820730001,-500.0,0.00038904,120]
[339665480,1727820730011,-1287.86,0.00038904,120]
[339665481,1727820730021,-709.65,0.00038904,120]
[339665482,1727820730030,-500.0,0.00038904,120]
[339665483,1727820730040,-500.0,0.00038904,120]
[339665484,1727820730049,-500.0,0.00038904,120]
[339665485,1727820730173,-500.0,0.00038904,120]
[339665486,1727820730183,-469.46561509,0.00038904,120]
[339665487,1727820730193,-500.0,0.00038904,120]
[339665488,1727820730202,-500.0,0.00038904,120]
[339665489,1727820730212,-500.0,0.00038904,120]
[339665490,1727820730221,-500.0,0.00038904,120]
[339665491,1727820730230,-944.29,0.00038904,120]
[339665492,1727820730240,-500.0,0.00038904,120]
[339665493,1727820730249,-1933.88,0.00038904,120]
[339665494,1727820730260,-150.0,0.00038904,120]
[339665495,1727820730270,-500.0,0.00038904,120]
[339665496,1727820730279,-500.0,0.00038904,120]
[339665497,1727820730288,-500.0,0.00038904,120]
[339665498,1727820730298,-523.09,0.00038904,120]
[339665499,1727820730307,-500.0,0.00038904,120]
[339665500,1727820730317,-500.0,0.00038904,120]
[339665501,1727820730326,-500.0,0.00038904,120]
[339665502,1727820730336,-500.0,0.00038904,120]
[339665503,1727820730346,-1869.94,0.00038904,120]
[339665504,1727820730355,-944.0,0.00038904,120]
[339665505,1727820730365,-300.0,0.00038904,120]
[339665506,1727820730374,-687.72,0.00038904,120]
[339665507,1727820730384,-165.52023925,0.00038904,120]
[339665508,1727820730393,-1628.22,0.00038904,120]
[339665509,1727820730402,-500.0,0.00038904,120]
[339665510,1727820730411,-2438.96,0.00038904,120]
[339665511,1727820730421,-1081.33,0.00038904,120]
[339665512,1727820730430,-620.28474239,0.00038904,120]
[339665513,1727820730440,-500.0,0.00038904,120]
[339665514,1727820730449,-500.0,0.00038904,120]
[339665515,1727820730459,-1044.69,0.00038904,120]
[339665516,1727820730469,-500.0,0.00038904,2]
[339665517,1727820730478,-1113.88,0.00038904,120]
[339665518,1727820730488,-500.0,0.00038904,120]
[339665519,1727820730497,-805.08,0.00038904,120]
[339665520,1727820730507,-500.0,0.00038904,120]
[339665521,1727820730517,-500.0,0.00038904,120]
[339665522,1727820730525,-500.0,0.00038904,120]
[339665523,1727820730533,-500.0,0.00038904,120]
[339665524,1727820730543,-730.3,0.00038904,120]
[339665525,1727820730552,-1894.13,0.00038904,120]
[339665526,1727820730562,-500.0,0.00038904,120]
[339665527,1727820730572,-500.0,0.00038904,120]
[339665528,1727820730581,-845.87,0.00038904,120]
[339665529,1727820730591,-500.0,0.00038904,120]
[339665530,1727820730600,-500.0,0.00038904,120]
[339665531,1727820730610,-1585.53,0.00038904,120]
[339665532,1727820730619,-500.0,0.00038904,120]
[339665533,1727820730630,-500.0,0.00038904,120]
[339665534,1727820730847,-500.0,0.00038904,120]
[339665535,1727820730857,-2817.76,0.00038904,120]
[339665536,1727820730866,-500.0,0.00038904,120]
[339665537,1727820730875,-500.0,0.00038904,120]
[339665538,1727820730884,-500.0,0.00038904,120]
[339665539,1727820730894,-803.86,0.00038904,120]
[339665540,1727820730903,-558.1,0.00038904,120]
[339665541,1727820730912,-500.0,0.00038904,120]
[339665542,1727820730921,-1367.78,0.00038904,120]
[339665543,1727820730930,-500.0,0.00038904,120]
[339665544,1727820730939,-1130.66,0.00038904,120]
[339665545,1727820730948,-542.4,0.00038904,120]
[339665546,1727820730958,-500.0,0.00038904,16]
[339665547,1727820730967,-762.58,0.00038904,120]
[339665548,1727820730976,-888.16,0.00038904,120]
[339665549,1727820730985,-1312.78,0.00038904,120]
[339665550,1727820730994,-500.0,0.00038904,120]
[339665551,1727820731003,-879.45,0.00038904,120]
[339665552,1727820731014,-500.0,0.00038904,120]
[339665553,1727820731023,-500.0,0.00038904,120]
[339665554,1727820731032,-500.0,0.00038904,120]
[339665555,1727820731041,-500.0,0.00038904,120]
[339665556,1727820731050,-500.0,0.00038904,120]
[339665557,1727820731059,-500.0,0.00038904,120]
[339665558,1727820731068,-500.0,0.00038904,120]
[339665559,1727820731077,-500.0,0.00038904,120]
[339665560,1727820731086,-500.0,0.00038904,120]
[339665561,1727820731095,-500.0,0.00038904,120]
[339665562,1727820731104,-500.0,0.00038904,120]
[339665563,1727820731113,-500.0,0.00038904,120]
[339665564,1727820731123,-2684.85,0.00038904,120]
[339665565,1727820731132,-989.53,0.00038904,120]
[339665566,1727820731142,-512.93,0.00038904,120]
[339665567,1727820731151,-500.0,0.00038904,120]
[339665568,1727820731160,-1296.3,0.00038904,120]
[339665569,1727820731169,-732.19,0.00038904,120]
[339665570,1727820731178,-500.0,0.00038904,120]
[339665571,1727820731187,-500.0,0.00038904,120]
[339665572,1727820731196,-500.0,0.00038904,120]
[339665573,1727820731206,-1175.42,0.00038904,120]
[339665574,1727820731215,-500.0,0.00038904,120]
[339665575,1727820731224,-500.0,0.00038904,120]
[339665576,1727820731233,-500.0,0.00038904,120]
[339665577,1727820731242,-500.0,0.00038904,120]
[339665578,1727820731251,-500.0,0.00038904,120]
[339665579,1727820731260,-500.0,0.00038904,120]
[339665580,1727820731269,-500.0,0.00038904,120]
[339665581,1727820731278,-789.08,0.00038904,120]
[339665582,1727820731287,-500.0,0.00038904,120]
[339665583,1727820731296,-1575.7,0.00038904,120]
[339665584,1727820731305,-592.14,0.00038904,120]
[339665585,1727820731314,-1058.03,0.00038904,120]
[339665586,1727820731324,-500.0,0.00038904,120]
[339665587,1727820731334,-500.0,0.00038904,120]
[339665588,1727820731343,-500.0,0.00038904,120]
[339665589,1727820731352,-794.51,0.00038904,120]
[339665590,1727820731361,-255.63105539,0.00038904,120]
[339665591,1727820731370,-500.0,0.00038904,120]
[339665592,1727820731380,-500.0,0.00038904,120]
[339665593,1727820731389,-1083.85,0.00038904,120]
[339665594,1727820731398,-500.0,0.00038904,120]
[339665595,1727820731407,-1154.19,0.00038904,120]
[339665596,1727820731416,-506.13,0.00038904,120]
[339665597,1727820731425,-500.0,0.00038904,120]
[339665598,1727820731434,-500.0,0.00038904,120]
[339665599,1727820731444,-1462.22,0.00038904,120]
[339665600,1727820731453,-500.0,0.00038904,30]
[339665601,1727820731462,-1285.95,0.00038904,120]
[339665602,1727820731471,-500.0,0.00038904,120]
[339665603,1727820731481,-500.0,0.00038904,120]
[339665604,1727820731490,-500.0,0.00038904,120]
[339665605,1727820731499,-500.0,0.00038904,120]
[339665606,1727820731510,-500.0,0.00038904,120]
[339665607,1727820731519,-1335.38,0.00038904,120]
[339665608,1727820731528,-1084.42,0.00038904,120]
[339665609,1727820731537,-516.44,0.00038904,120]
[339665610,1727820731545,-1361.89,0.00038904,120]
[339665611,1727820731554,-500.0,0.00038904,120]
[339665612,1727820731563,-290.08941086,0.00038904,120]
[339665613,1727820731572,-669.44,0.00038904,120]
[339665614,1727820731581,-500.0,0.00038904,30]
[339665615,1727820731591,-500.0,0.00038904,120]
[339665616,1727820731599,-634.68,0.00038904,120]
[339665617,1727820731609,-500.0,0.00038904,120]
[339665618,1727820731618,-1067.45,0.00038904,120]
[339665619,1727820731628,-500.0,0.00038904,120]
[339665620,1727820731639,-500.0,0.00038904,120]
[339665621,1727820731648,-500.0,0.00038904,120]
[339665622,1727820731657,-1550.27,0.00038904,120]
[339665623,1727820731667,-947.2,0.00038904,120]
[339665624,1727820731676,-500.0,0.00038904,120]
[339665625,1727820731686,-745.55,0.00038904,120]
[339665626,1727820731695,-1478.79,0.00038904,120]
[339665627,1727820731704,-533.51,0.00038904,120]
[339665628,1727820731716,-500.0,0.00038904,120]
[339665629,1727820731725,-500.0,0.00038904,120]
[339665630,1727820731735,-500.0,0.00038904,120]
[339665631,1727820731744,-1998.44,0.00038904,120]
[339665632,1727820731753,-630.72,0.00038904,120]
[339665633,1727820731766,-1648.28,0.00038904,120]
[339665634,1727820731775,-500.0,0.00038904,120]
[339665635,1727820731785,-500.0,0.00038904,120]
[339665636,1727820731794,-690.57,0.00038904,120]
[339665637,1727820731803,-1526.16,0.00038904,120]
[339665638,1727820731813,-500.0,0.00038904,120]
[339665639,1727820731822,-645.27,0.00038904,120]
[339665640,1727820731833,-529.17,0.00038904,120]
[339665641,1727820731842,-500.0,0.00038904,120]
[339665642,1727820731852,-1154.28,0.00038904,120]
[339665643,1727820731861,-500.0,0.00038904,120]
[339665644,1727820731871,-1705.01,0.00038904,120]
[339665645,1727820731880,-500.0,0.00038904,120]
[339665646,1727820731889,-500.0,0.00038904,120]
[339665647,1727820731898,-500.0,0.00038904,120]
[339665648,1727820731907,-500.0,0.00038904,120]
[339665649,1727820731917,-500.0,0.00038904,120]
[339665650,1727820731926,-1121.16,0.00038904,120]
[339665651,1727820731936,-1850.36,0.00038904,120]
[339665652,1727820731945,-1129.51,0.00038904,120]
[339665653,1727820731955,-500.0,0.00038904,120]
[339665654,1727820731964,-978.74,0.00038904,120]
[339665655,1727820731973,-889.83,0.00038904,120]
[339665656,1727820731983,-791.42,0.00038904,120]
[339665657,1727820731992,-673.51,0.00038904,120]
[339665658,1727820732001,-500.0,0.00038904,120]
[339665659,1727820732012,-500.0,0.00038904,120]
[339665660,1727820732021,-301.762982,0.00038904,120]
[339665661,1727820732030,-500.0,0.00038904,120]
[339665662,1727820732039,-500.0,0.00038904,120]
[339665663,1727820732048,-500.0,0.00038904,120]
[339665664,1727820732058,-500.0,0.00038904,120]
[339665665,1727820732067,-501.55881733,0.00038904,120]
[339665666,1727820732075,-500.0,0.00038904,120]
[339665667,1727820732084,-683.14,0.00038904,120]
[339665668,1727820732094,-1883.48,0.00038904,120]
[339665669,1727820732103,-500.0,0.00038904,120]
[339665670,1727820732112,-2097.27,0.00038904,120]
[339665671,1727820732121,-500.0,0.00038904,120]
[339665672,1727820732130,-500.0,0.00038904,120]
[339665673,1727820732139,-1083.58,0.00038904,120]
[339665674,1727820732148,-1341.3,0.00038904,120]
[339665675,1727820732157,-523.47,0.00038904,120]
[339665676,1727820732167,-726.8,0.00038904,120]
[339665677,1727820732176,-681.82,0.00038904,120]
[339665678,1727820732185,-2847.32,0.00038904,120]
[339665679,1727820732195,-767.3,0.00038904,120]
[339665680,1727820732204,-252.69730076,0.00038904,120]
[339665681,1727820732214,-534.24,0.00038904,120]
[339665682,1727820732223,-500.0,0.00038904,120]
[339665683,1727820732232,-500.0,0.00038904,120]
[339665684,1727820732242,-1255.83,0.00038904,5]
[339665685,1727820732251,-641.21,0.00038904,120]
[339665686,1727820732261,-500.0,0.00038904,120]
[339665687,1727820732271,-1095.54,0.00038904,120]
[339665688,1727820732280,-591.17,0.00038904,120]
[339665689,1727820732289,-2202.17,0.00038904,120]
[339665690,1727820732298,-500.0,0.00038904,120]
[339665691,1727820732307,-500.0,0.00038904,120]
[339665692,1727820732316,-500.0,0.00038904,120]
[339665693,1727820732326,-373.69828544,0.00038904,120]
[339665694,1727820732335,-596.83,0.00038904,120]
[339665695,1727820732344,-500.0,0.00038904,120]
[339665696,1727820732353,-500.0,0.00038904,120]
[339665697,1727820732363,-500.0,0.00038904,120]
[339665698,1727820732372,-577.02,0.00038904,120]
[339665699,1727820732381,-531.03311971,0.00038904,120]
[339665700,1727820732391,-649.43,0.00038904,120]
[339665701,1727820732400,-500.0,0.00038904,120]
[339665702,1727820732410,-500.0,0.00038904,120]
[339665703,1727820732419,-230.7246478,0.00038904,120]
[339665704,1727820732428,-500.0,0.00038904,120]
[339665705,1727820732438,-500.0,0.00038904,120]
[339665706,1727820732447,-3472.21,0.00038904,120]
[339665707,1727820732456,-2000.0,0.00038904,30]
[339665708,1727820732466,-314.09648945,0.00038904,120]
[339665709,1727820732475,-943.1,0.00038904,120]
[339665710,1727820732485,-500.0,0.00038904,120]
[339665711,1727820732495,-1481.97,0.00038904,120]
[339665712,1727820732504,-500.0,0.00038904,120]
[339665713,1727820732515,-500.0,0.00038904,120]
[339665714,1727820732525,-1133.76,0.00038904,120]
[339665715,1727820732534,-500.0,0.00038904,120]
[339665716,1727820732544,-500.0,0.00038904,120]
[339665717,1727820732554,-1356.91,0.00038904,30]
[339665718,1727820732564,-500.0,0.00038904,120]
[339665719,1727820732573,-1544.47,0.00038904,120]
[339665720,1727820732583,-500.0,0.00038904,120]
[339665721,1727820732592,-767.63,0.00038904,120]
[339665722,1727820732601,-1014.81,0.00038904,120]
[339665723,1727820732610,-500.0,0.00038904,120]
[339665724,1727820732619,-500.0,0.00038904,120]
[339665725,1727820732629,-875.49,0.00038904,120]
[339665726,1727820732640,-500.0,0.00038904,120]
[339665727,1727820732650,-1665.5,0.00038904,120]
[339665728,1727820732659,-500.0,0.00038904,120]
[339665729,1727820732668,-500.0,0.00038904,120]
[339665730,1727820732678,-1118.58,0.00038904,120]
[339665731,1727820732689,-500.0,0.00038904,120]
[339665732,1727820732697,-500.0,0.00038904,120]
[339665733,1727820732707,-500.0,0.00038904,30]
[339665734,1727820732717,-500.0,0.00038904,120]
[339665735,1727820732727,-500.0,0.00038904,120]
[339665736,1727820732737,-1943.98,0.00038904,120]
[339665737,1727820732746,-500.0,0.00038904,120]
[339665738,1727820732755,-500.0,0.00038904,120]
[339665739,1727820732765,-500.0,0.00038904,120]
[339665740,1727820732774,-500.0,0.00038904,120]
[339665741,1727820732783,-500.0,0.00038904,120]
[339665742,1727820732792,-771.94,0.00038904,120]
[339665743,1727820732802,-3186.38,0.00038904,120]
[339665744,1727820732811,-500.0,0.00038904,120]
[339665745,1727820732820,-4357.71,0.00038904,120]
[339665746,1727820732829,-1781.52,0.00038904,120]
[339665747,1727820732838,-500.0,0.00038904,120]
[339665748,1727820732847,-1453.92,0.00038904,120]
[339665749,1727820732857,-2741.84,0.00038904,120]
[339665750,1727820732866,-500.0,0.00038904,120]
[339665751,1727820732875,-2622.79,0.00038904,120]
[339665752,1727820732885,-2160.18,0.00038904,120]
[339665753,1727820732894,-500.0,0.00038904,120]
[339665754,1727820732903,-500.0,0.00038904,120]
[339665755,1727820732912,-1585.54,0.00038904,120]
[339665756,1727820732922,-500.0,0.00038904,120]
[339665757,1727820732931,-1793.64,0.00038904,120]
[339665758,1727820732940,-500.0,0.00038904,120]
[339665759,1727820732949,-500.0,0.00038904,120]
[339665760,1727820732959,-500.0,0.00038904,2]
[339665761,1727820732968,-1356.0,0.00038904,120]
[339665762,1727820732977,-500.0,0.00038904,120]
[339665763,1727820732986,-716.89,0.00038904,120]
[339665764,1727820732995,-500.0,0.00038904,120]
[339665765,1727820733004,-500.0,0.00038904,120]
[339665766,1727820733015,-500.0,0.00038904,120]
[339665767,1727820733024,-500.0,0.00038904,120]
[339665768,1727820733033,-2229.65,0.00038904,120]
[339665769,1727820733042,-3120.18,0.00038904,120]
[339665770,1727820733051,-500.0,0.00038904,120]
[339665771,1727820733060,-500.0,0.00038904,120]
[339665772,1727820733070,-2562.34,0.00038904,120]
[339665773,1727820733080,-561.48,0.00038904,120]
[339665774,1727820733089,-500.0,0.00038904,120]
[339665775,1727820733099,-1720.36,0.00038904,120]
[339665776,1727820733109,-500.0,0.00038904,120]
[339665777,1727820733121,-1264.36,0.00038904,120]
[339665778,1727820733131,-500.0,0.00038904,120]
[339665779,1727820733141,-500.0,0.00038904,120]
[339665780,1727820733152,-1401.84,0.00038904,120]
[339665781,1727820733162,-500.0,0.00038904,120]
[339665782,1727820733171,-500.0,0.00038904,120]
[339665783,1727820733180,-541.62,0.00038904,120]
[339665784,1727820733190,-1202.32,0.00038904,120]
[339665785,1727820733200,-500.0,0.00038904,120]
[339665786,1727820733210,-500.0,0.00038904,120]
[339665787,1727820733219,-500.0,0.00038904,120]
[339665788,1727820733229,-500.0,0.00038904,120]
[339665789,1727820733239,-1869.79,0.00038904,120]
[339665790,1727820733248,-683.16,0.00038904,120]
[339665791,1727820733259,-500.0,0.00038904,120]
[339665792,1727820733268,-547.35,0.00038904,120]
[339665793,1727820733279,-1021.95,0.00038904,120]
[339665794,1727820733288,-500.0,0.00038904,120]
[339665795,1727820733297,-1116.83,0.00038904,120]
[339665796,1727820733306,-1310.69,0.00038904,120]
[339665797,1727820733316,-1082.8,0.00038904,120]
[339665798,1727820733326,-537.73,0.00038904,120]
[339665799,1727820733335,-500.0,0.00038904,120]
[339665800,1727820733344,-1224.9,0.00038904,120]
[339665801,1727820733353,-500.0,0.00038904,120]
[339665802,1727820733363,-500.0,0.00038904,120]
[339665803,1727820733371,-500.0,0.00038904,120]
[339665804,1727820733380,-500.0,0.00038904,120]
[339665805,1727820733389,-500.0,0.00038904,120]
[339665806,1727820733399,-500.0,0.00038904,120]
[339665807,1727820733408,-1286.67,0.00038904,120]
[339665808,1727820733417,-657.58,0.00038904,120]
[339665809,1727820733426,-500.0,0.00038904,120]
[339665810,1727820733435,-500.0,0.00038904,120]
[339665811,1727820733444,-1073.31,0.00038904,120]
[339665812,1727820733453,-500.0,0.00038904,120]
[339665813,1727820733462,-541.92,0.00038904,120]
[339665814,1727820733471,-2339.06,0.00038904,120]
[339665815,1727820733480,-744.91,0.00038904,120]
[339665816,1727820733489,-500.0,0.00038904,120]
[339665817,1727820733499,-817.84,0.00038904,120]
[339665818,1727820733508,-2599.93,0.00038904,120]
[339665819,1727820733517,-500.0,0.00038904,120]
[339665820,1727820733527,-1750.82,0.00038904,120]
[339665821,1727820733536,-579.27,0.00038904,120]
[339665822,1727820733545,-500.0,0.00038904,120]
[339665823,1727820733555,-500.0,0.00038904,120]
[339665824,1727820733565,-908.91,0.00038904,120]
[339665825,1727820733574,-500.0,0.00038904,120]
[339665826,1727820733583,-1921.1,0.00038904,120]
[339665827,1727820733593,-500.0,0.00038904,120]
[339665828,1727820733602,-1558.18,0.00038904,120]
[339665829,1727820733611,-559.26,0.00038904,120]
[339665830,1727820733620,-517.15,0.00038904,120]
[339665831,1727820733630,-742.38,0.00038904,120]
[339665832,1727820733642,-500.0,0.00038904,120]
[339665833,1727820733651,-1507.58,0.00038904,120]
[339665834,1727820733661,-500.0,0.00038904,120]
[339665835,1727820733670,-500.0,0.00038904,120]
[339665836,1727820733679,-500.0,0.00038904,120]
[339665837,1727820733688,-1812.22,0.00038904,120]
[339665838,1727820733700,-500.0,0.00038904,120]
[339665839,1727820733710,-865.43,0.00038904,120]
[339665840,1727820733721,-912.77,0.00038904,120]
[339665841,1727820733731,-503.29,0.00038904,120]
[339665842,1727820733740,-500.0,0.00038904,120]
[339665843,1727820733749,-538.32,0.00038904,120]
[339665844,1727820733759,-1232.27,0.00038904,120]
[339665845,1727820733769,-500.0,0.00038904,120]
[339665846,1727820733778,-286.68894948,0.00038904,120]
[339665847,1727820733787,-612.63,0.00038904,120]
[339665848,1727820733796,-727.23,0.00038904,120]
[339665849,1727820733806,-500.0,0.00038904,120]
[339665850,1727820733815,-500.0,0.00038904,120]
[339665851,1727820733824,-2434.31,0.00038904,120]
[339665852,1727820733833,-1123.1,0.00038904,120]
[339665853,1727820733842,-500.0,0.00038904,120]
[339665854,1727820733851,-20000.0,0.00038904,2]
[339665855,1727820733861,-609.21,0.00038904,120]
[339665856,1727820733870,-500.0,0.00038904,120]
[339665857,1727820733879,-726.12,0.00038904,120]
[339665858,1727820733888,-639.42,0.00038904,120]
[339665859,1727820733897,-500.0,0.00038904,120]
[339665860,1727820733907,-909.97,0.00038904,120]
[339665861,1727820733916,-500.0,0.00038904,120]
[339665862,1727820733925,-500.0,0.00038904,120]
[339665863,1727820733934,-1769.05,0.00038904,120]
[339665864,1727820733943,-2645.4,0.00038904,120]
[339665865,1727820733952,-502.11306805,0.00038904,120]
[339665866,1727820733962,-908.05,0.00038904,120]
[339665867,1727820733972,-719.11,0.00038904,120]
[339665868,1727820733981,-500.0,0.00038904,120]
[339665869,1727820733991,-500.0,0.00038904,120]
[339665870,1727820734001,-500.0,0.00038904,120]
[339665871,1727820734011,-500.0,0.00038904,120]
[339665872,1727820734020,-500.0,0.00038904,120]
[339665873,1727820734030,-500.0,0.00038904,120]
[339665874,1727820734039,-1353.18,0.00038904,120]
[339665875,1727820734048,-1681.46,0.00038904,120]
[339665876,1727820734057,-500.0,0.00038904,120]
[339665877,1727820734067,-500.0,0.00038904,120]
[339665878,1727820734076,-574.63,0.00038904,120]
[339665879,1727820734086,-1427.27,0.00038904,120]
[339665880,1727820734097,-1194.08,0.00038904,120]
[339665881,1727820734106,-1852.67,0.00038904,120]
[339665882,1727820734116,-501.50171413,0.00038904,120]
[339665883,1727820734125,-1271.22,0.00038904,120]
[339665884,1727820734136,-578.88,0.00038904,120]
[339665885,1727820734145,-1006.55,0.00038904,120]
[339665886,1727820734154,-500.0,0.00038904,120]
[339665887,1727820734163,-1067.38,0.00038904,120]
[339665888,1727820734172,-2065.44,0.00038904,120]
[339665889,1727820734181,-500.0,0.00038904,120]
[339665890,1727820734190,-500.0,0.00038904,120]
[339665891,1727820734199,-997.79,0.00038904,120]
[339665892,1727820734208,-676.91,0.00038904,120]
[339665893,1727820734218,-500.0,0.00038904,120]
[339665894,1727820734227,-500.0,0.00038904,120]
[339665895,1727820734237,-500.0,0.00038904,120]
[339665896,1727820734248,-500.0,0.00038904,120]
[339665897,1727820734258,-500.0,0.00038904,120]
[339665898,1727820734267,-500.0,0.00038904,120]
[339665899,1727820734276,-500.0,0.00038904,120]
[339665900,1727820734286,-1299.08,0.00038904,120]
[339665901,1727820734298,-7133.94,0.00038904,120]
[339665902,1727820734308,-2948.18,0.00038904,120]
[339665903,1727820734318,-876.55,0.00038904,120]
[339665904,1727820734328,-500.0,0.00038904,120]
[339665905,1727820734340,-500.0,0.00038904,120]
[339665906,1727820734351,-500.0,0.00038904,120]
[339665907,1727820734360,-500.0,0.00038904,120]
[339665908,1727820734371,-1297.59,0.00038904,120]
[339665909,1727820734380,-500.0,0.00038904,120]
[339665910,1727820734389,-500.0,0.00038904,120]
[339665911,1727820734401,-500.0,0.00038904,120]
[339665912,1727820734531,-500.0,0.00038904,120]
[339665913,1727820734542,-3085.28,0.00038904,120]
[339665914,1727820734552,-1540.7,0.00038904,120]
[339665915,1727820734562,-835.52,0.00038904,120]
[339665916,1727820734572,-1360.6,0.00038904,120]
[339665917,1727820734583,-2073.43,0.00038904,120]
[339665918,1727820734593,-500.0,0.00038904,120]